bitfinex-derivatives/quotes_BTCF0:USTF0_20251119
["timestamp","ask_amount","ask_price","bid_price","bid_amount"]
[1763581031917,0.00339803,88905.0,88904.0,0.04397129]
[1763581032116,0.00339803,88905.0,88904.0,0.02191129]
[1763581032518,0.00339803,88905.0,88904.0,0.00090129]
[1763581033025,0.00339803,88905.0,88904.0,0.00016862]
[1763581033321,0.00339803,88905.0,88892.0,0.04307]
[1763581033322,0.113822,88893.0,88892.0,0.04307]
[1763581033624,0.00339803,88893.0,88892.0,0.15642587]
[1763581033812,0.00219803,88893.0,88892.0,0.15642587]
[1763581034514,0.00016871,88901.0,88900.0,0.1690031]
[1763581034714,0.00236674,88901.0,88900.0,0.16973577]
[1763581035111,0.00236674,88901.0,88900.0,0.05712267]
[1763581035312,0.00356674,88901.0,88900.0,0.05712267]
[1763581035716,0.00236674,88901.0,88900.0,0.05712267]
[1763581035913,0.00016871,88901.0,88900.0,0.05712267]
[1763581036110,0.3608,88914.0,88913.0,0.1556666]
[1763581036315,0.3608,88914.0,88913.0,0.15639927]
[1763581036316,0.36299803,88914.0,88913.0,0.15639927]
[1763581036625,0.36299803,88914.0,88913.0,0.04380267]
[1763581037324,0.36399803,88914.0,88913.0,0.04380267]
[1763581037722,0.38704803,88914.0,88913.0,0.04380267]
[1763581037914,0.40760803,88914.0,88913.0,0.04380267]
[1763581038518,0.04680803,88914.0,88913.0,0.04380267]
[1763581038727,0.09586034,88914.0,88913.0,0.00073267]
[1763581039122,0.04461,88906.0,88905.0,0.02117871]
[1763581039319,0.02375803,88906.0,88905.0,0.08434373]
[1763581039625,0.00219803,88906.0,88905.0,0.04397138]
[1763581040212,0.002,88914.0,88913.0,0.1556666]
[1763581040415,0.00319803,88914.0,88913.0,0.15639927]
[1763581040626,0.00016871,88922.0,88921.0,0.1556565]
[1763581040825,0.00016871,88922.0,88921.0,0.15638917]
[1763581041017,0.00016871,88922.0,88921.0,0.51718917]
[1763581041821,0.00236674,88922.0,88921.0,0.04380267]
[1763581042222,0.00236674,88922.0,88921.0,0.10446352]
[1763581043718,0.01982674,88922.0,88921.0,0.00073267]
[1763581043923,0.01109674,88922.0,88921.0,0.04380267]
[1763581044425,0.00236674,88922.0,88921.0,0.04380267]
[1763581044621,0.00236674,88922.0,88921.0,0.0842493]
[1763581044825,0.00236674,88922.0,88921.0,0.04380267]
[1763581046026,0.01982674,88922.0,88921.0,0.04380267]
[1763581046422,0.01109674,88922.0,88921.0,0.04380267]
[1763581047330,0.00236674,88922.0,88921.0,0.04380267]
[1763581047531,0.00336674,88922.0,88921.0,0.04380267]
[1763581047838,0.00187397,88922.0,88921.0,0.40460267]
[1763581048328,0.00187397,88922.0,88921.0,0.46525023]
[1763581049119,0.002,88922.0,88921.0,0.46525023]
[1763581049733,0.001,88922.0,88921.0,0.46525023]
[1763581050136,0.40090978,88957.0,88940.0,0.1564924]
[1763581050437,0.40090978,88957.0,88948.0,0.04393]
[1763581050438,0.482251,88949.0,88948.0,0.04393]
[1763581050634,0.599751,88949.0,88948.0,0.04612803]
[1763581051430,0.61339936,88949.0,88948.0,0.02506803]
[1763581052128,0.61439936,88949.0,88948.0,0.02506803]
[1763581052336,0.50579936,88949.0,88948.0,0.02506803]
[1763581052534,0.002,88949.0,88948.0,0.04612803]
[1763581052732,0.1125182,88975.0,88948.0,0.04612803]
[1763581052733,0.04010978,88981.0,88976.0,0.02269]
[1763581053030,0.04010978,88981.0,88968.0,0.01345]
[1763581053031,0.04010978,88981.0,88980.0,0.00219803]
[1763581053032,0.02212,88981.0,88980.0,0.00219803]
[1763581053235,0.02212,88969.0,88968.0,0.01345]
[1763581053532,0.02212,88969.0,88968.0,0.01564803]
[1763581053831,0.02212,88961.0,88960.0,0.00016861]
[1763581054037,0.02212,88961.0,88960.0,0.00236664]
[1763581054330,0.02212,88961.0,88960.0,0.02448664]
[1763581054722,0.02212,88961.0,88960.0,0.04717664]
[1763581054925,0.3618,88969.0,88968.0,0.170787]
[1763581055231,0.37386,88969.0,88968.0,0.17298503]
[1763581055431,0.001,88969.0,88968.0,0.17298503]
[1763581055627,0.001,88969.0,88968.0,0.06045803]
[1763581055933,0.4954411,88973.0,88972.0,0.02212]
[1763581056131,0.4954411,88973.0,88972.0,0.13683993]
[1763581056334,0.38292,88973.0,88972.0,0.13683993]
[1763581056830,0.38292,88973.0,88972.0,0.00219803]
[1763581057036,0.02212,88964.0,88963.0,0.1125322]
[1763581057237,0.02212,88964.0,88963.0,0.11473023]
[1763581057621,0.02212,88964.0,88963.0,0.13685023]
[1763581058227,0.02212,88964.0,88963.0,0.04700803]
[1763581058630,0.02312,88964.0,88963.0,0.04700803]
[1763581059030,0.02312,88964.0,88963.0,0.00219803]
[1763581059233,0.02412,88964.0,88963.0,0.00219803]
[1763581059630,0.13272,88964.0,88963.0,0.00219803]
[1763581059826,0.13272,88964.0,88963.0,0.02431803]
[1763581060237,0.13272,88964.0,88963.0,0.00219803]
[1763581060442,0.02212,88961.0,88960.0,0.00016861]
[1763581060742,0.38443628,88961.0,88960.0,0.00016861]
[1763581061035,0.38443628,88961.0,88960.0,0.00236664]
[1763581061226,0.49303628,88961.0,88960.0,0.00236664]
[1763581061426,0.49303628,88961.0,88960.0,0.00016861]
[1763581061629,0.49303628,88961.0,88960.0,0.00236664]
[1763581061831,0.49403628,88961.0,88960.0,0.00016861]
[1763581062247,0.1346736,88947.0,88946.0,0.03552]
[1763581062431,0.4954736,88947.0,88946.0,0.03552]
[1763581062737,0.02212,88934.0,88927.0,0.1125782]
[1763581062941,0.49152,88934.0,88933.0,0.02444843]
[1763581063139,0.50618365,88934.0,88933.0,0.0001304]
[1763581063345,0.1347001,88926.0,88925.0,0.02228861]
[1763581063641,0.48406365,88934.0,88933.0,0.04481]
[1763581063642,0.4694,88934.0,88933.0,0.04481]
[1763581063842,0.49152,88934.0,88933.0,0.04700803]
[1763581064042,0.49152,88934.0,88933.0,0.15957933]
[1763581064245,0.52043398,88934.0,88933.0,0.15957933]
[1763581064538,0.36089591,88934.0,88933.0,0.15957933]
[1763581064842,0.10869591,88934.0,88933.0,0.15957933]
[1763581065541,9.591e-05,88934.0,88933.0,0.15957933]
[1763581065741,0.02221591,88934.0,88933.0,0.02431803]
[1763581065943,0.05103398,88934.0,88933.0,0.02431803]
[1763581066236,0.05103398,88934.0,88933.0,0.04700803]
[1763581066631,0.05103398,88934.0,88933.0,0.00219803]
[1763581066828,0.02212,88926.0,88925.0,0.00016861]
[1763581067038,0.2433002,88926.0,88925.0,0.02448664]
[1763581067241,0.25139281,88926.0,88925.0,0.00236664]
[1763581067435,0.25139281,88926.0,88925.0,0.00016861]
[1763581067638,0.61219281,88926.0,88925.0,0.00016861]
[1763581067833,0.1347077,88920.0,88919.0,0.05301003]
[1763581068143,0.16859617,88920.0,88919.0,0.05301003]
[1763581069643,0.16859617,88920.0,88919.0,0.10001806]
[1763581069644,0.04594847,88920.0,88919.0,0.10001806]
[1763581069940,0.16464847,88920.0,88919.0,0.10101806]
[1763581070142,0.52544847,88920.0,88919.0,0.10101806]
[1763581070542,0.50532847,88920.0,88919.0,0.10001806]
[1763581070938,0.39668847,88920.0,88919.0,0.10001806]
[1763581071245,0.47044,88920.0,88919.0,0.10001806]
[1763581071540,0.11064,88920.0,88919.0,0.10001806]
[1763581071745,0.10964,88920.0,88919.0,0.10001806]
[1763581072048,0.002,88920.0,88919.0,0.10001806]
[1763581072440,0.001,88920.0,88919.0,0.10001806]
[1763581073148,0.10864,88922.0,88921.0,0.04481]
[1763581073346,0.10864,88922.0,88921.0,0.04700803]
[1763581074237,0.12876,88922.0,88921.0,0.04700803]
[1763581074543,0.16971752,88922.0,88921.0,0.00219803]
[1763581075240,0.17071752,88922.0,88921.0,0.00219803]
[1763581075642,0.16971752,88922.0,88921.0,0.00219803]
[1763581075842,0.17071752,88922.0,88921.0,0.00219803]
[1763581076337,0.17071752,88922.0,88921.0,0.02431803]
[1763581077149,0.17071752,88922.0,88921.0,0.13690453]
[1763581077550,0.17171752,88922.0,88921.0,0.13690453]
[1763581077748,0.17171752,88922.0,88921.0,0.15959453]
[1763581078145,0.17071752,88922.0,88921.0,0.15959453]
[1763581078444,0.15059752,88922.0,88921.0,0.15959453]
[1763581078846,0.10964,88922.0,88921.0,0.15959453]
[1763581079052,0.12976,88922.0,88921.0,0.04700803]
[1763581079749,0.1197,88922.0,88921.0,0.04700803]
[1763581080252,0.10964,88922.0,88921.0,0.04700803]
[1763581080450,0.3608,88927.0,88926.0,0.04481]
[1763581080651,0.46944,88927.0,88926.0,0.04700803]
[1763581080952,0.4795,88927.0,88926.0,0.15958823]
[1763581081146,0.48956,88927.0,88926.0,0.00219803]
[1763581081352,0.52545902,88927.0,88926.0,0.00219803]
[1763581082252,0.52645902,88927.0,88926.0,0.00219803]
[1763581083045,0.52645902,88927.0,88919.0,0.05301003]
[1763581083046,0.02012,88920.0,88919.0,0.05301003]
[1763581083448,0.02731527,88920.0,88919.0,0.05301003]
[1763581084349,0.02831527,88920.0,88919.0,0.05301003]
[1763581084850,0.02831527,88920.0,88895.0,0.0403875]
[1763581084851,0.1327343,88899.0,88898.0,4e-05]
[1763581085049,0.1327343,88899.0,88888.0,0.1126275]
[1763581085050,0.112641,88878.0,88877.0,0.06047318]
[1763581085350,0.112641,88878.0,88855.0,0.3608]
[1763581085351,0.02597747,88878.0,88861.0,0.0448]
[1763581085541,0.02597747,88878.0,88872.0,0.0448]
[1763581085542,0.1126435,88876.0,88872.0,0.0448]
[1763581085746,0.13473747,88877.0,88873.0,0.00219803]
[1763581085747,0.112646,88874.0,88873.0,0.00219803]
[1763581085941,0.13862565,88874.0,88870.0,0.01285]
[1763581086142,0.7216,88871.0,88870.0,0.01504803]
[1763581086344,0.1126625,88861.0,88860.0,0.01285]
[1763581086551,0.46969817,88861.0,88860.0,0.05984803]
[1763581086855,0.48033492,88861.0,88860.0,0.05984803]
[1763581087353,0.48033492,88861.0,88840.0,0.28168603]
[1763581087355,0.48033492,88861.0,88846.0,1.39e-06]
[1763581087356,0.1126707,88855.0,88846.0,1.39e-06]
[1763581087542,0.3608,88847.0,88846.0,0.00219803]
[1763581087745,0.3608,88847.0,88844.0,0.41237101]
[1763581087746,0.1126815,88846.0,88844.0,0.41237101]
[1763581088048,0.14721281,88845.0,88844.0,0.42741904]
[1763581088247,0.84275698,88845.0,88844.0,0.42522101]
[1763581088452,0.73375698,88845.0,88844.0,0.42741904]
[1763581088650,0.84275698,88845.0,88844.0,0.42522101]
[1763581089047,0.84288847,88845.0,88844.0,0.42522101]
[1763581089357,0.84288847,88845.0,88836.0,2e-08]
[1763581089358,0.1126929,88837.0,88836.0,2e-08]
[1763581089558,0.4734929,88837.0,88836.0,2e-08]
[1763581089854,1.05850523,88837.0,88836.0,2e-08]
[1763581090050,0.94926523,88837.0,88836.0,2e-08]
[1763581090358,0.94826523,88837.0,88836.0,2e-08]
[1763581090554,1.05750523,88837.0,88836.0,2e-08]
[1763581091054,1.05750523,88837.0,88836.0,0.00200002]
[1763581091563,1.05754523,88837.0,88836.0,0.00200002]
[1763581091747,1.05754523,88837.0,88836.0,2e-08]
[1763581091953,0.94826523,88837.0,88836.0,2e-08]
[1763581092150,1.05754523,88837.0,88836.0,2e-08]
[1763581092759,1.05758523,88837.0,88836.0,2e-08]
[1763581092953,1.05754523,88837.0,88836.0,2e-08]
[1763581093149,0.94826523,88837.0,88836.0,2e-08]
[1763581093452,0.94585233,88837.0,88836.0,0.04699805]
[1763581093647,0.83657233,88837.0,88836.0,0.04699805]
[1763581094146,0.94585233,88837.0,88836.0,0.04699805]
[1763581094348,0.22425233,88837.0,88836.0,0.04699805]
[1763581095052,0.22429233,88837.0,88836.0,0.04699805]
[1763581095255,0.11497233,88837.0,88836.0,0.15969225]
[1763581095462,0.22429233,88837.0,88836.0,0.04699805]
[1763581095756,0.10941011,88837.0,88836.0,0.04699805]
[1763581096349,0.23644931,88837.0,88836.0,0.02474805]
[1763581096656,0.23640931,88837.0,88836.0,0.02474805]
[1763581096958,0.23644931,88837.0,88836.0,0.02474805]
[1763581097357,0.23644931,88837.0,88836.0,2e-08]
[1763581097550,0.23644931,88837.0,88828.0,3e-08]
[1763581097551,0.1127031,88829.0,88828.0,3e-08]
[1763581097854,0.11284427,88829.0,88828.0,3e-08]
[1763581098058,0.23031455,88829.0,88828.0,3e-08]
[1763581098358,0.95191455,88829.0,88828.0,3e-08]
[1763581100151,0.84255455,88829.0,88828.0,3e-08]
[1763581100349,0.95191455,88829.0,88828.0,3e-08]
[1763581100550,1.37941617,88829.0,88828.0,3e-08]
[1763581100858,0.1127196,88816.0,88815.0,0.00010145]
[1763581101049,0.58301115,88816.0,88815.0,0.00010145]
[1763581101254,0.70674139,88816.0,88815.0,0.00010145]
[1763581101653,0.70674139,88816.0,88802.0,0.01285]
[1763581101654,0.112731,88807.0,88802.0,0.01285]
[1763581101954,0.582891,88807.0,88802.0,0.01285]
[1763581102259,0.61662107,88807.0,88802.0,0.01285]
[1763581102459,0.61662107,88807.0,88798.0,0.00011293]
[1763581102657,0.1127374,88802.0,88798.0,0.00011293]
[1763581102859,0.61013205,88802.0,88798.0,0.00011293]
[1763581103163,0.70899334,88802.0,88798.0,0.00011293]
[1763581103652,0.59959334,88802.0,88801.0,0.00819803]
[1763581103857,0.70899334,88802.0,88801.0,0.00819803]
[1763581104159,0.70899334,88802.0,88777.0,0.01285]
[1763581104160,0.1127711,88776.0,88750.0,0.01108802]
[1763581104362,0.36299803,88774.0,88773.0,0.00910614]
[1763581104661,0.35108991,88774.0,88773.0,0.16668034]
[1763581104849,0.3608,88791.0,88790.0,0.1704026]
[1763581105048,0.1127263,88811.0,88792.0,0.1573601]
[1763581105049,0.3608,88793.0,88792.0,0.1573601]
[1763581105250,0.36299803,88793.0,88792.0,0.15809277]
[1763581105458,0.47271803,88793.0,88792.0,0.15809277]
[1763581105659,0.36299803,88793.0,88792.0,0.15809277]
[1763581105858,0.40222361,88793.0,88792.0,0.15809277]
[1763581106061,0.44200501,88793.0,88792.0,0.15809277]
[1763581106365,0.07459187,88793.0,88792.0,0.15809277]
[1763581106658,0.00016891,88801.0,88800.0,0.1567199]
[1763581106862,0.3608,88814.0,88813.0,0.04398]
[1763581107061,0.36299803,88814.0,88813.0,0.04471267]
[1763581107253,0.38944699,88814.0,88813.0,0.02265267]
[1763581107454,0.49916699,88814.0,88813.0,0.02265267]
[1763581107655,0.49916699,88814.0,88813.0,0.04471267]
[1763581108061,0.38944699,88814.0,88813.0,0.04471267]
[1763581108358,0.49916699,88814.0,88813.0,0.04471267]
[1763581108560,0.61188909,88814.0,88813.0,0.04471267]
[1763581109069,0.47271803,88814.0,88813.0,0.04471267]
[1763581109758,0.47052,88814.0,88813.0,0.04471267]
[1763581110062,0.00016891,88822.0,88821.0,0.1566932]
[1763581110257,0.3608,88834.0,88833.0,0.156678]
[1763581110459,0.47271803,88834.0,88833.0,0.15741067]
[1763581111261,0.47271803,88834.0,88833.0,0.15187067]
[1763581111463,0.3608,88834.0,88833.0,0.15187067]
[1763581111765,0.47052,88834.0,88833.0,0.15187067]
[1763581112165,0.3258,88834.0,88833.0,0.15187067]
[1763581112367,0.00016891,88842.0,88841.0,0.1586979]
[1763581112562,0.00016891,88842.0,88841.0,0.52023057]
[1763581112760,0.3608,88851.0,88850.0,0.1586865]
[1763581112966,0.47267803,88851.0,88850.0,0.15941917]
[1763581113262,0.47267803,88851.0,88850.0,0.04674267]
[1763581113453,0.58552774,88851.0,88850.0,0.04674267]
[1763581113862,0.11284971,88851.0,88850.0,0.04674267]
[1763581114062,0.00219803,88851.0,88850.0,0.40754267]
[1763581114775,0.00016891,88859.0,88858.0,0.02321]
[1763581114959,0.00236694,88859.0,88858.0,0.05969267]
[1763581115677,0.11216694,88859.0,88858.0,0.05969267]
[1763581116465,0.00236694,88859.0,88858.0,0.17235897]
[1763581116670,0.00016891,88859.0,88858.0,0.53315897]
[1763581118369,0.10976,88865.0,88864.0,0.15711885]
[1763581118667,0.1126442,88876.0,88864.0,0.15711885]
[1763581118668,0.1126336,88884.0,88878.0,0.04601]
[1763581118865,0.1568636,88884.0,88883.0,0.00073267]
[1763581119064,0.29464455,88884.0,88883.0,0.00073267]
[1763581119268,0.02262,88873.0,88861.0,0.3608]
[1763581119460,0.36996445,88884.0,88862.0,0.00073267]
[1763581119461,0.02161,88863.0,88862.0,0.00073267]
[1763581119660,0.02380803,88863.0,88862.0,0.00073267]
[1763581119865,0.00455873,88863.0,88862.0,0.04674267]
[1763581120063,0.22265872,88871.0,88870.0,0.04601]
[1763581120268,0.13799035,88871.0,88870.0,0.15939377]
[1763581120770,0.02595232,88871.0,88870.0,0.15939377]
[1763581121071,0.00016882,88871.0,88870.0,0.15939377]
[1763581122874,0.00236685,88871.0,88870.0,0.15939377]
[1763581123366,0.04659685,88871.0,88870.0,0.02394267]
[1763581123566,0.04659685,88871.0,88870.0,0.00073267]
[1763581123773,0.13918362,88871.0,88870.0,0.00073267]
[1763581124465,0.13918362,88871.0,88858.0,0.01311882]
[1763581124466,0.156895,88859.0,88858.0,0.00016882]
[1763581124666,0.1569103,88847.0,88846.0,0.3608]
[1763581124962,0.1569103,88847.0,88846.0,0.04601]
[1763581124963,0.04010031,88847.0,88846.0,0.04601]
[1763581125162,0.14986028,88847.0,88846.0,0.04601]
[1763581126367,0.12411798,88847.0,88846.0,0.04601]
[1763581127778,0.16834798,88847.0,88846.0,0.02321]
[1763581128165,0.19408257,88847.0,88846.0,0.02321]
[1763581128365,0.19408257,88847.0,88844.0,0.01295]
[1763581128366,0.02161,88845.0,88844.0,0.01295]
[1763581128668,0.1569204,88839.0,88838.0,0.00016882]
[1763581128869,0.51991843,88839.0,88838.0,0.00016882]
[1763581129062,0.53815986,88839.0,88838.0,0.00016882]
[1763581132776,0.42546946,88839.0,88838.0,0.00016882]
[1763581132976,0.40284946,88839.0,88838.0,0.04617882]
[1763581133278,0.51252946,88839.0,88838.0,0.04617882]
[1763581133486,0.40284946,88839.0,88838.0,0.04617882]
[1763581133777,0.51252946,88839.0,88838.0,0.04617882]
[1763581134473,0.53514946,88839.0,88838.0,0.00016882]
[1763581134678,0.53514946,88839.0,88838.0,0.02337882]
[1763581135076,0.17434946,88839.0,88838.0,0.02337882]
[1763581135374,0.53514946,88839.0,88838.0,0.04617882]
[1763581135576,0.51690803,88839.0,88838.0,0.04617882]
[1763581135971,0.40722803,88839.0,88838.0,0.00016882]
[1763581136172,0.51690803,88839.0,88838.0,0.00016882]
[1763581136469,0.63952845,88839.0,88838.0,0.00016882]
[1763581136871,0.63952845,88839.0,88816.0,0.01295]
[1763581136872,0.1126921,88838.0,88823.0,0.3608]
[1763581137076,0.15913743,88824.0,88823.0,0.3608]
[1763581137273,0.00219803,88824.0,88823.0,0.04601]
[1763581137678,0.11187803,88824.0,88823.0,0.04601]
[1763581137868,0.00219803,88824.0,88823.0,0.04601]
[1763581138074,0.11187803,88824.0,88823.0,0.04601]
[1763581138768,0.00219803,88824.0,88823.0,0.04601]
[1763581138969,0.11183803,88824.0,88823.0,0.04601]
[1763581139382,0.3608,88839.0,88824.0,0.01295]
[1763581139582,0.1126973,88834.0,88833.0,0.04601]
[1763581139786,0.11489533,88834.0,88833.0,0.04601]
[1763581139978,0.12111365,88834.0,88833.0,0.04601]
[1763581140284,0.12111365,88834.0,88833.0,0.158708]
[1763581140285,0.11183803,88834.0,88833.0,0.158708]
[1763581140986,0.11183803,88834.0,88833.0,0.04601]
[1763581141479,0.00219803,88834.0,88833.0,0.04601]
[1763581141886,0.11285032,88847.0,88846.0,0.04399]
[1763581142085,0.24580835,88847.0,88846.0,0.04399]
[1763581142282,0.00236685,88847.0,88846.0,0.04399]
[1763581142587,0.27204024,88847.0,88838.0,0.00016882]
[1763581142782,0.1126899,88840.0,88839.0,0.04399]
[1763581142985,0.11488793,88840.0,88839.0,0.04399]
[1763581143184,0.15801793,88840.0,88839.0,0.04399]
[1763581143482,0.15801793,88840.0,88838.0,0.00016882]
[1763581143483,0.04313,88839.0,88838.0,0.00016882]
[1763581143683,0.04313,88839.0,88812.0,0.01295]
[1763581143684,0.1338383,88817.0,88816.0,0.4960981]
[1763581143885,0.00219803,88817.0,88816.0,0.5175081]
[1763581144187,0.00219803,88817.0,88816.0,0.40479]
[1763581144486,0.10964,88822.0,88821.0,0.04399]
[1763581144787,0.00016882,88830.0,88829.0,0.04399]
[1763581144987,0.00016882,88830.0,88829.0,0.40479]
[1763581145689,0.10964,88838.0,88837.0,0.1566829]
[1763581145990,0.00219803,88838.0,88837.0,0.1566829]
[1763581146581,0.00219803,88838.0,88837.0,0.04399]
[1763581147291,0.1127018,88830.0,88829.0,0.5174921]
[1763581147489,0.11489983,88830.0,88829.0,0.5174921]
[1763581147785,0.00219803,88830.0,88829.0,0.5174921]
[1763581147993,0.00219803,88830.0,88829.0,0.54777711]
[1763581148476,0.00219803,88830.0,88829.0,0.5174921]
[1763581148681,0.1096,88836.0,88835.0,0.1566855]
[1763581148990,0.11269,88840.0,88839.0,0.1566756]
[1763581149190,0.22448803,88840.0,88839.0,0.1566756]
[1763581149392,0.00219803,88840.0,88839.0,0.1566756]
[1763581149795,0.00219803,88840.0,88839.0,0.5174756]
[1763581150000,0.00016882,88846.0,88845.0,0.1566728]
[1763581150984,0.00016882,88846.0,88845.0,0.18696173]
[1763581151184,0.00016882,88846.0,88845.0,0.1566728]
[1763581151492,0.00236685,88846.0,88845.0,0.5174728]
[1763581151690,0.00236685,88846.0,88845.0,0.1566728]
[1763581151891,0.11504835,88846.0,88845.0,0.04399]
[1763581152193,0.11504835,88846.0,88845.0,0.1566728]
[1763581152194,0.02348685,88846.0,88845.0,0.1566728]
[1763581152493,0.00236685,88846.0,88845.0,0.1566728]
[1763581152695,0.00016882,88846.0,88845.0,0.1566728]
[1763581153290,0.00016882,88846.0,88845.0,0.19713931]
[1763581154102,0.1337673,88873.0,88872.0,0.05775]
[1763581154282,0.24552533,88873.0,88872.0,0.05775]
[1763581154483,0.13287803,88873.0,88872.0,0.05775]
[1763581154682,0.02331803,88873.0,88872.0,0.05775]
[1763581154882,0.11175803,88873.0,88872.0,0.05775]
[1763581155097,0.47036,88880.0,88879.0,0.04399]
[1763581155294,0.47259803,88880.0,88879.0,0.04399]
[1763581155592,0.1557773,88873.0,88870.0,0.03036606]
[1763581155787,0.04313,88865.0,88858.0,0.39116606]
[1763581155987,0.15488803,88865.0,88859.0,0.03036606]
[1763581156182,0.15488803,88865.0,88857.0,0.03036606]
[1763581156183,0.16197886,88865.0,88857.0,0.03036606]
[1763581156392,0.16197886,88865.0,88851.0,0.03036606]
[1763581156696,0.16197886,88865.0,88848.0,0.01376]
[1763581156697,0.16197886,88865.0,88849.0,0.03036606]
[1763581156891,0.16197886,88865.0,88851.0,0.1126743]
[1763581157193,0.05241886,88865.0,88860.0,0.1126637]
[1763581157396,0.16197886,88865.0,88856.0,0.1126678]
[1763581157592,0.16197886,88865.0,88858.0,0.1126652]
[1763581158095,0.05241886,88865.0,88864.0,0.04415882]
[1763581158297,0.16197886,88865.0,88864.0,0.04415882]
[1763581159497,0.11175803,88865.0,88864.0,0.04415882]
[1763581159697,0.15488803,88865.0,88864.0,0.04415882]
[1763581160389,0.04532803,88865.0,88864.0,0.02274882]
[1763581160588,0.25355272,88865.0,88864.0,0.00016882]
[1763581160789,0.14399272,88865.0,88864.0,0.00016882]
[1763581160990,0.25351272,88865.0,88864.0,0.00016882]
[1763581161189,0.14399272,88865.0,88864.0,0.00016882]
[1763581161391,0.25351272,88865.0,88864.0,0.00016882]
[1763581161798,0.25351272,88865.0,88864.0,0.04415882]
[1763581162390,0.25351272,88865.0,88864.0,0.00016882]
[1763581162591,0.02112,88844.0,88843.0,0.02529]
[1763581162798,0.15484803,88844.0,88843.0,0.02529]
[1763581162992,0.17612723,88844.0,88843.0,0.02529]
[1763581163493,0.17612723,88844.0,88843.0,0.00271]
[1763581163693,0.53692723,88844.0,88843.0,0.00271]
[1763581163901,0.04313,88836.0,88835.0,0.00016882]
[1763581164102,0.51882223,88836.0,88835.0,0.00016882]
[1763581164296,0.62559593,88836.0,88835.0,0.00016882]
[1763581165397,0.1127158,88819.0,88816.0,0.03036606]
[1763581165696,0.00219803,88817.0,88816.0,0.04497]
[1763581165899,0.00219803,88817.0,88814.0,0.00013388]
[1763581166200,0.00371923,88817.0,88816.0,0.04497]
[1763581166592,0.11323923,88817.0,88816.0,0.04497]
[1763581166990,0.15739923,88817.0,88816.0,0.04497]
[1763581167190,0.04787923,88817.0,88816.0,0.04497]
[1763581167396,0.15739923,88817.0,88816.0,0.04497]
[1763581167705,0.04416,88815.0,88814.0,0.00013388]
[1763581168000,0.17004506,88815.0,88814.0,0.00013388]
[1763581168298,0.1568897,88808.0,88807.0,0.00016882]
[1763581168499,0.15908773,88808.0,88807.0,0.00016882]
[1763581168700,0.19184664,88808.0,88807.0,0.00016882]
[1763581169095,0.04416,88807.0,88806.0,0.00028151]
[1763581169302,0.04635803,88807.0,88806.0,0.00028151]
[1763581169503,0.17032389,88807.0,88806.0,0.00028151]
[1763581170398,0.17032389,88807.0,88806.0,0.02358151]
[1763581170801,0.27984389,88807.0,88806.0,0.00028151]
[1763581171906,0.17032389,88807.0,88806.0,0.00028151]
[1763581172102,0.17032389,88807.0,88787.0,0.17348743]
[1763581172103,0.04438,88791.0,88783.0,0.03031586]
[1763581172400,0.04438,88778.0,88777.0,0.07934]
[1763581172707,0.51685803,88778.0,88777.0,0.05641]
[1763581172902,0.63992896,88778.0,88777.0,0.05641]
[1763581173091,0.12526896,88778.0,88777.0,0.1016]
[1763581173297,0.112753,88790.0,88782.0,0.1127624]
[1763581173492,0.02314,88786.0,88785.0,0.02293]
[1763581173696,0.02314,88786.0,88776.0,0.03022243]
[1763581173697,0.04438,88779.0,88776.0,0.03022243]
[1763581173900,0.11978,88778.0,88777.0,0.03327]
[1763581174204,0.13009764,88778.0,88777.0,0.03327]
[1763581174405,0.12197803,88778.0,88777.0,0.03327]
[1763581174606,0.1832181,88778.0,88777.0,0.03327]
[1763581174801,0.1832181,88778.0,88777.0,0.1460391]
[1763581175104,0.1832181,88778.0,88777.0,0.03327]
[1763581175906,0.00513,88775.0,88774.0,0.03327]
[1763581176107,0.12535424,88775.0,88774.0,0.03327]
[1763581176308,0.24345396,88775.0,88774.0,0.03327]
[1763581176504,0.13068236,88775.0,88774.0,0.03327]
[1763581176702,0.24024236,88775.0,88774.0,0.03327]
[1763581176898,0.35301396,88775.0,88774.0,0.03327]
[1763581177102,0.13068236,88775.0,88774.0,0.03327]
[1763581177304,0.13068236,88775.0,88774.0,0.07846]
[1763581177606,0.24024236,88775.0,88774.0,0.0562]
[1763581178412,0.24020236,88775.0,88774.0,0.03327]
[1763581178604,0.13068236,88775.0,88774.0,0.03327]
[1763581178807,0.24024236,88775.0,88774.0,0.03327]
[1763581179405,0.13068236,88775.0,88774.0,0.03327]
[1763581179706,0.24024236,88775.0,88774.0,0.07846]
[1763581179906,0.24024236,88775.0,88774.0,0.10743082]
[1763581181623,0.12042236,88775.0,88774.0,0.10743082]
[1763581181918,0.22994236,88775.0,88774.0,0.10743082]
[1763581182123,0.22994236,88775.0,88774.0,0.07416082]
[1763581182627,0.36096892,88799.0,88790.0,0.1127526]
[1763581182805,0.36096892,88799.0,88798.0,0.04519]
[1763581183004,0.36096892,88799.0,88798.0,0.07416082]
[1763581183005,0.47272695,88799.0,88798.0,0.07416082]
[1763581183220,0.51926654,88799.0,88798.0,0.07416082]
[1763581185009,0.51922654,88799.0,88798.0,0.07416082]
[1763581185218,0.36316695,88799.0,88798.0,0.07416082]
[1763581185412,0.10968892,88799.0,88798.0,0.07416082]
[1763581185615,0.00016892,88799.0,88798.0,0.07416082]
[1763581186114,0.3608,88811.0,88799.0,0.1127408]
[1763581186318,0.00219803,88811.0,88810.0,0.1579172]
[1763581186516,0.00219803,88811.0,88810.0,0.18688802]
[1763581186719,0.14148518,88811.0,88810.0,0.18688802]
[1763581186908,0.14148518,88811.0,88810.0,0.07416082]
[1763581187106,0.15208518,88811.0,88810.0,0.02897082]
[1763581187717,0.51288518,88811.0,88810.0,0.02897082]
[1763581188117,0.51292518,88811.0,88810.0,0.02897082]
[1763581189313,0.51292518,88811.0,88810.0,0.00869152]
[1763581189924,0.40336518,88811.0,88810.0,0.00869152]
[1763581190222,0.51288518,88811.0,88810.0,0.00869152]
[1763581190619,0.51288518,88811.0,88802.0,0.00016892]
[1763581190620,0.1127272,88810.0,88802.0,0.00016892]
[1763581190922,0.47573413,88803.0,88802.0,0.00016892]
[1763581191312,0.47573413,88803.0,88781.0,0.01329]
[1763581191313,0.1127488,88793.0,88786.0,0.1127569]
[1763581191518,0.58526683,88793.0,88785.0,0.04048809]
[1763581191719,0.71358567,88793.0,88786.0,0.04048809]
[1763581191920,0.71358567,88793.0,88787.0,0.04048809]
[1763581192420,0.71358567,88793.0,88790.0,0.04048809]
[1763581192619,0.71358567,88793.0,88788.0,0.15324249]
[1763581192819,0.71358567,88793.0,88790.0,0.04048809]
[1763581193021,0.71358567,88793.0,88790.0,0.15324019]
[1763581193323,0.71358567,88793.0,88792.0,0.05848]
[1763581193719,0.71358567,88793.0,88792.0,0.03622]
[1763581193919,0.71358567,88793.0,88792.0,0.05848]